bitfinex/quotes_BTCUSD_20250614
["timestamp","ask_amount","ask_price","bid_price","bid_amount"]
[1749867076439,6.56471158,105510.0,105500.0,0.00877641]
[1749867077039,1.62695658,105510.0,105500.0,0.00877641]
[1749867077260,6.66451158,105510.0,105500.0,0.00877641]
[1749867077499,6.52686762,105510.0,105500.0,0.00877641]
[1749867078096,1.58911262,105510.0,105500.0,0.00877641]
[1749867078300,6.52686762,105510.0,105500.0,0.00877641]
[1749867078568,7.22686762,105510.0,105500.0,0.00877641]
[1749867079165,5.38680694,105500.0,105490.0,0.0341]
[1749867079366,5.69827043,105500.0,105490.0,0.0341]
[1749867079571,5.69827043,105500.0,105490.0,0.05188011]
[1749867079942,5.73169383,105500.0,105490.0,0.05188011]
[1749867080798,5.73869383,105500.0,105490.0,0.05288011]
[1749867080992,5.74269383,105500.0,105490.0,0.05388011]
[1749867081193,5.74269383,105500.0,105490.0,0.0538801]
[1749867081748,5.74269383,105500.0,105490.0,0.05387887]
[1749867081968,5.74269383,105500.0,105490.0,0.05387931]
[1749867083302,5.78285383,105500.0,105490.0,0.0361]
[1749867085339,5.81117055,105500.0,105490.0,0.0361]
[1749867085985,5.78285383,105500.0,105490.0,0.0361]
[1749867086518,5.81117055,105500.0,105490.0,0.0361]
[1749867086728,6.51117055,105500.0,105490.0,0.0361]
[1749867088126,6.78425055,105500.0,105490.0,0.0361]
[1749867090174,7.536608,105500.0,105490.0,0.002]
[1749867090415,6.836608,105500.0,105490.0,0.002]
[1749867091280,5.13684469,105480.0,105470.0,0.11529892]
[1749867091493,5.66061982,105480.0,105470.0,0.12419045]
[1749867091898,5.70077982,105480.0,105470.0,0.14197352]
[1749867092074,5.72926082,105480.0,105470.0,0.14197351]
[1749867092299,5.53017113,105480.0,105470.0,0.14197351]
[1749867092517,0.9793908,105480.0,105470.0,0.10647351]
[1749867092670,6.2269148,105480.0,105470.0,0.08079892]
[1749867092869,6.2269148,105480.0,105470.0,0.05706975]
[1749867093076,6.2329148,105480.0,105470.0,0.05706975]
[1749867093480,1.2951598,105480.0,105470.0,0.05706975]
[1749867093679,6.2269148,105480.0,105470.0,0.05706975]
[1749867093888,6.2359148,105480.0,105470.0,0.05706975]
[1749867094098,6.2319148,105480.0,105470.0,0.05606975]
[1749867094294,6.2319148,105480.0,105470.0,0.05706975]
[1749867094295,6.2389148,105480.0,105470.0,0.05706975]
[1749867094996,6.9065148,105480.0,105470.0,0.05706975]
[1749867095197,6.9114632,105480.0,105470.0,0.05706975]
[1749867096574,1.9737082,105480.0,105470.0,0.05706975]
[1749867096758,6.9114632,105480.0,105470.0,0.05706975]
[1749867097574,6.6880942,105480.0,105470.0,0.05706975]
[1749867097920,6.3880942,105480.0,105470.0,0.09336975]
[1749867098129,7.0531342,105480.0,105470.0,0.09336975]
[1749867098333,6.8580942,105480.0,105470.0,0.09336975]
[1749867098535,7.0531342,105480.0,105470.0,0.09336975]
[1749867098659,6.3531342,105480.0,105470.0,0.09336975]
[1749867098859,6.14355335,105480.0,105470.0,0.09336975]
[1749867099065,6.18371335,105480.0,105470.0,0.1204915]
[1749867099265,6.3531342,105480.0,105470.0,0.12004584]
[1749867099484,6.13544083,105480.0,105470.0,0.12004498]
[1749867099683,5.97876083,105480.0,105470.0,0.09336975]
[1749867099899,6.33909998,105480.0,105470.0,0.09336975]
[1749867100317,6.35364083,105480.0,105470.0,0.09336975]
[1749867100526,1.41588583,105480.0,105470.0,0.09336975]
[1749867100831,6.35364083,105480.0,105470.0,0.09336975]
[1749867104633,1.41588583,105480.0,105470.0,0.09336975]
[1749867104880,6.35364083,105480.0,105470.0,0.09336975]
[1749867107827,1.41588583,105480.0,105470.0,0.09336975]
[1749867108040,6.35364083,105480.0,105470.0,0.09336975]
[1749867111872,6.35364083,105480.0,105470.0,0.11114308]
[1749867112185,6.35364083,105480.0,105470.0,0.09336975]
[1749867112607,6.35364083,105480.0,105470.0,0.11114308]
[1749867112760,6.37626492,105480.0,105470.0,0.11114308]
[1749867113864,6.37626492,105480.0,105470.0,0.09336975]
[1749867114282,6.37626492,105480.0,105470.0,0.11114308]
[1749867115306,6.37626492,105480.0,105470.0,0.09336975]
[1749867115717,6.37626492,105480.0,105470.0,0.11114308]
[1749867116834,6.37626492,105480.0,105470.0,0.09336975]
[1749867122795,6.37626492,105480.0,105470.0,0.10225588]
[1749867123019,6.37626492,105480.0,105470.0,0.09336975]
[1749867123860,6.37626492,105480.0,105470.0,0.10225731]
[1749867124584,6.37626492,105480.0,105470.0,0.09336975]
[1749867124861,6.37626492,105480.0,105470.0,0.10225731]
[1749867125489,6.37626492,105480.0,105470.0,0.09336975]
[1749867125696,6.37626492,105480.0,105470.0,0.10225731]
[1749867126531,6.37626492,105480.0,105470.0,0.09336975]
[1749867126736,1.43850992,105480.0,105470.0,0.10225731]
[1749867126951,6.37626492,105480.0,105470.0,0.10225731]
[1749867127363,6.37626492,105480.0,105470.0,0.09336975]
[1749867127570,6.37626492,105480.0,105470.0,0.10225731]
[1749867128033,6.37626492,105480.0,105470.0,0.09336975]
[1749867128270,6.37626492,105480.0,105470.0,0.10225731]
[1749867128509,6.18122492,105480.0,105470.0,0.10225731]
[1749867128719,6.37626492,105480.0,105470.0,0.12003219]
[1749867128933,6.37626492,105480.0,105470.0,0.09336975]
[1749867129147,6.37626492,105480.0,105470.0,0.1200321]
[1749867129474,6.37626492,105480.0,105470.0,0.11114465]
[1749867129678,6.37626492,105480.0,105470.0,0.1200321]
[1749867129884,6.37626492,105480.0,105470.0,0.12003376]
[1749867130709,6.18122492,105480.0,105470.0,0.12003376]
[1749867130923,5.55060231,105480.0,105470.0,0.31633145]
[1749867131165,5.65890902,105480.0,105470.0,0.11781496]
[1749867131388,5.65890902,105480.0,105470.0,0.11781245]
[1749867131595,5.64990902,105480.0,105470.0,0.11014626]
[1749867131803,5.14632489,105480.0,105470.0,0.36012193]
[1749867132011,5.19448489,105480.0,105470.0,0.34397407]
[1749867132214,5.18800469,105480.0,105470.0,0.36112103]
[1749867132419,5.18800469,105480.0,105470.0,0.33667973]
[1749867132633,0.24224969,105480.0,105470.0,0.36112093]
[1749867132837,0.24224969,105480.0,105470.0,0.36012104]
[1749867133037,0.24524969,105480.0,105470.0,0.33567973]
[1749867133153,0.24524969,105480.0,105470.0,0.28199713]
[1749867133359,0.2297694,105480.0,105470.0,0.31814172]
[1749867133554,0.2297694,105480.0,105470.0,0.3342888]
[1749867133766,0.2297694,105480.0,105470.0,0.30762554]
[1749867133969,0.2297694,105480.0,105470.0,0.31873518]
[1749867134180,0.2297694,105480.0,105470.0,0.32540095]
[1749867134382,0.2307694,105480.0,105470.0,0.34388204]
[1749867134587,0.2307694,105480.0,105470.0,0.31944094]
[1749867134785,0.2317694,105480.0,105470.0,0.32810671]
[1749867135000,0.2317694,105480.0,105470.0,0.33921633]
[1749867135211,0.2317694,105480.0,105470.0,0.3364009]
[1749867135411,0.2317694,105480.0,105470.0,0.31195976]
[1749867135792,0.2317694,105480.0,105470.0,0.31862552]
[1749867135929,0.2317694,105480.0,105470.0,0.3364009]
[1749867136134,0.2317694,105480.0,105470.0,0.34588208]
[1749867136535,0.2317694,105480.0,105470.0,0.33758779]
[1749867136741,0.2317694,105480.0,105470.0,0.35536317]
[1749867136940,0.2317694,105480.0,105470.0,0.31862552]
[1749867137138,0.2317694,105480.0,105470.0,0.3364009]
[1749867137496,0.2317694,105480.0,105470.0,0.32691963]
[1749867137676,0.2317694,105480.0,105470.0,0.32973514]
[1749867137918,0.2317694,105480.0,105470.0,0.31862552]
[1749867138211,0.2317694,105480.0,105470.0,0.32973514]
[1749867138418,0.2317694,105480.0,105470.0,0.31862552]
[1749867138685,0.2317694,105480.0,105470.0,0.34588199]
[1749867138888,0.2317694,105480.0,105470.0,0.33640085]
[1749867139092,0.06112076,105480.0,105470.0,0.39114035]
[1749867139301,0.26021018,105480.0,105470.0,0.39114034]
[1749867139457,0.26021018,105480.0,105470.0,0.40224992]
[1749867139666,0.26021018,105480.0,105470.0,0.40891566]
[1749867140028,0.07060069,105480.0,105470.0,0.41839638]
[1749867140236,0.04216,105480.0,105470.0,0.57323552]
[1749867140387,0.04216,105480.0,105470.0,0.56656951]
[1749867140589,0.50986048,105500.0,105490.0,0.04097948]
[1749867140794,0.55002048,105500.0,105490.0,0.27238022]
[1749867140996,0.55002048,105500.0,105490.0,0.27238019]
[1749867141209,0.55002048,105500.0,105490.0,0.27238016]
[1749867141386,0.55002048,105500.0,105490.0,0.28185973]
[1749867141581,0.55002048,105500.0,105490.0,0.27519481]
[1749867141773,0.55602048,105500.0,105490.0,0.28185964]
[1749867141973,0.55902048,105500.0,105490.0,0.2761948]
[1749867142226,0.55902048,105500.0,105490.0,0.28285964]
[1749867142449,0.55902048,105500.0,105490.0,0.08378864]
[1749867142863,0.55902048,105500.0,105490.0,0.0771238]
[1749867142994,0.55902048,105500.0,105490.0,0.08378864]
[1749867143195,0.55902048,105500.0,105490.0,0.0593509]
[1749867143395,0.55902048,105500.0,105490.0,0.06601572]
[1749867143839,0.55902048,105500.0,105490.0,0.2733798]
[1749867144040,0.55902048,105500.0,105490.0,0.24894233]
[1749867144241,0.54954181,105500.0,105490.0,0.24894233]
[1749867144448,0.54954181,105500.0,105490.0,0.25560692]
[1749867144662,0.54954181,105500.0,105490.0,0.24894233]
[1749867144801,0.54954181,105500.0,105490.0,0.28285871]
[1749867145009,0.54954181,105500.0,105490.0,0.2733788]
[1749867145204,0.54954181,105500.0,105490.0,0.24894233]
[1749867145409,0.54954181,105500.0,105490.0,0.2584219]
[1749867145632,0.54954181,105500.0,105490.0,0.27619387]
[1749867145841,0.54954181,105500.0,105490.0,0.28285835]
[1749867146464,0.54954181,105500.0,105490.0,0.27456586]
[1749867146667,0.54954181,105500.0,105490.0,0.26790138]
[1749867146869,0.54954181,105500.0,105490.0,0.27456587]
[1749867147077,0.54954181,105500.0,105490.0,0.28567335]
[1749867147280,0.54954181,105500.0,105490.0,0.22209143]
[1749867147920,0.54954181,105500.0,105490.0,0.22875597]
[1749867148111,0.54954181,105500.0,105490.0,0.2465281]
[1749867148295,0.54954181,105500.0,105490.0,0.24652794]
[1749867148535,0.54954181,105500.0,105490.0,0.22209143]
[1749867149105,0.54954181,105500.0,105490.0,0.2410503]
[1749867149265,0.54954181,105500.0,105490.0,0.29296081]
[1749867149465,0.56849888,105500.0,105490.0,0.3024402]
[1749867149665,0.5779771,105500.0,105490.0,0.31191941]
[1749867149929,0.58763257,105500.0,105490.0,0.31191941]
[1749867150130,0.58763257,105500.0,105490.0,0.32139835]
[1749867150131,0.38840302,105500.0,105490.0,0.32139835]
[1749867150341,0.38840302,105500.0,105490.0,0.32139844]
[1749867150526,0.17349583,105500.0,105490.0,0.32139844]
[1749867150758,0.14506117,105500.0,105490.0,0.43374298]
[1749867150959,0.01442482,105520.0,105510.0,0.23163308]
[1749867151099,0.07806595,105520.0,105510.0,0.28655173]
[1749867151296,0.05911257,105520.0,105510.0,0.29602914]
[1749867151502,0.06858917,105520.0,105510.0,0.30550628]
[1749867152305,0.07806595,105520.0,105510.0,0.30550637]
[1749867152510,0.07906586,105520.0,105510.0,0.31698351]
[1749867153014,0.07906586,105520.0,105510.0,0.30750637]
[1749867153348,0.0886716,105520.0,105510.0,0.32516703]
[1749867153546,0.0886716,105520.0,105510.0,0.30750637]
[1749867153789,0.0886716,105520.0,105510.0,0.31350637]
[1749867153960,0.07906586,105520.0,105510.0,0.31350637]
[1749867154399,0.07906586,105520.0,105510.0,0.32298351]
[1749867154998,0.08854264,105520.0,105510.0,0.31350637]
[1749867155200,0.08854336,105520.0,105510.0,0.31350646]
[1749867155403,0.08854336,105520.0,105510.0,0.32298369]
[1749867155625,0.08854336,105520.0,105510.0,0.31350646]
[1749867157248,0.09786515,105520.0,105510.0,0.31350646]
[1749867157980,0.08838828,105520.0,105510.0,0.31350646]
[1749867158313,0.05063615,105520.0,105510.0,0.32298324]
[1749867158468,0.06011239,105520.0,105510.0,0.32298324]
[1749867159050,0.06011239,105520.0,105510.0,0.34059763]
[1749867159253,0.06011239,105520.0,105510.0,0.32298324]
[1749867159513,0.06011239,105520.0,105510.0,0.34059762]
[1749867159977,0.06958872,105520.0,105510.0,0.32298324]
[1749867160186,0.06011239,105520.0,105510.0,0.34059762]
[1749867160438,0.06011239,105520.0,105510.0,0.32298324]
[1749867160683,0.05063615,105520.0,105510.0,0.32298324]
[1749867160926,0.05063615,105520.0,105510.0,0.32961543]
[1749867161164,0.06011239,105520.0,105510.0,0.32961542]
[1749867161363,0.05063615,105520.0,105510.0,0.32298324]
[1749867161540,0.05063615,105520.0,105510.0,0.32961542]
[1749867162008,0.04116,105520.0,105510.0,0.42585718]
[1749867162212,0.04116,105520.0,105510.0,0.42585713]
[1749867162423,0.04116,105520.0,105510.0,0.42585691]
[1749867162593,0.0189506,105530.0,105520.0,0.25046705]
[1749867162821,0.04959517,105530.0,105520.0,0.47338799]
[1749867163024,0.04959526,105530.0,105520.0,0.47338797]
[1749867163574,0.04959526,105530.0,105520.0,0.47338781]
[1749867163769,0.06854612,105530.0,105520.0,0.47338768]
[1749867163995,0.0640706,105530.0,105520.0,0.47338768]
[1749867164208,0.0640706,105530.0,105520.0,0.4733877]
[1749867164408,0.05859526,105530.0,105520.0,0.47438771]
[1749867164632,0.06307069,105530.0,105520.0,0.4677562]
[1749867164821,0.06307069,105530.0,105520.0,0.47338769]
[1749867165073,0.05907069,105530.0,105520.0,0.47938769]
[1749867165289,0.06007069,105530.0,105520.0,0.48338777]
[1749867165494,0.06007069,105530.0,105520.0,0.4767562]
[1749867165667,0.06007069,105530.0,105520.0,0.48338777]
[1749867165905,0.06007069,105530.0,105520.0,0.4767562]
[1749867166079,0.06007069,105530.0,105520.0,0.48338777]
[1749867166506,0.06954639,105530.0,105520.0,0.48338777]
[1749867166811,0.0695463,105530.0,105520.0,0.48338778]
[1749867167350,0.06007069,105530.0,105520.0,0.48338778]
[1749867167722,0.0695463,105530.0,105520.0,0.48338778]
[1749867168053,0.06007069,105530.0,105520.0,0.48338777]
[1749867168228,0.0695463,105530.0,105520.0,0.48338777]
[1749867168440,0.06954621,105530.0,105520.0,0.48338777]
[1749867168659,0.05059526,105530.0,105520.0,0.48338777]
[1749867169745,0.05059526,105530.0,105520.0,0.4767562]
[1749867169953,0.05059526,105530.0,105520.0,0.48338777]
[1749867170169,0.06007069,105530.0,105520.0,0.48338777]
[1749867170371,0.05059517,105530.0,105520.0,0.4930454]
[1749867170530,0.05059517,105530.0,105520.0,0.48641387]
[1749867171142,0.04765863,105550.0,105540.0,0.05952416]
[1749867171341,0.106726,105550.0,105540.0,0.43720867]
[1749867171615,0.106726,105550.0,105540.0,0.4305852]
[1749867172026,0.106726,105550.0,105540.0,0.43720818]
[1749867172242,0.09725218,105550.0,105540.0,0.43720818]
[1749867172453,0.106726,105550.0,105540.0,0.44020818]
[1749867172666,0.09725218,105550.0,105540.0,0.44020818]
[1749867172867,0.106726,105550.0,105540.0,0.44020818]
[1749867173108,0.09725218,105550.0,105540.0,0.44020815]
[1749867173313,0.10672591,105550.0,105540.0,0.4335852]
[1749867173530,0.09725218,105550.0,105540.0,0.44020815]
[1749867173741,0.10672591,105550.0,105540.0,0.44020815]
[1749867173960,0.10672591,105550.0,105540.0,0.4372081]
[1749867174173,0.09725218,105550.0,105540.0,0.4392081]
[1749867174375,0.10672582,105550.0,105540.0,0.4392081]
[1749867174847,0.09725218,105550.0,105540.0,0.43920808]
[1749867175278,0.10672591,105550.0,105540.0,0.43920808]
[1749867175484,0.10672591,105550.0,105540.0,0.43920795]
[1749867175691,0.10672591,105550.0,105540.0,0.4325852]
[1749867175922,0.01894548,105560.0,105550.0,0.24900511]
[1749867176131,0.0780115,105560.0,105550.0,0.32935333]
[1749867176624,0.49857211,105570.0,105560.0,0.21788473]
[1749867176831,0.54816342,105570.0,105560.0,0.39423199]
[1749867177039,0.55763544,105570.0,105560.0,0.41979964]
[1749867177247,0.56710755,105570.0,105560.0,0.49867195]
[1749867177457,0.56710755,105570.0,105560.0,0.49867196]
[1749867177665,0.56710755,105570.0,105560.0,0.49204999]
[1749867177872,0.56710755,105570.0,105560.0,0.49867194]
[1749867178077,0.57657975,105570.0,105560.0,0.49867194]
[1749867178300,0.57657975,105570.0,105560.0,0.49867178]
[1749867178507,0.56710755,105570.0,105560.0,0.49867178]
[1749867178714,0.57410755,105570.0,105560.0,0.49204999]
[1749867178924,0.57410755,105570.0,105560.0,0.4986873]
[1749867179342,0.58510755,105570.0,105560.0,0.4986873]
[1749867179571,0.56616342,105570.0,105560.0,0.4986873]
[1749867179778,0.34761494,105570.0,105560.0,0.4986873]
[1749867179994,0.30749494,105570.0,105560.0,0.4986873]
[1749867180174,0.34761494,105570.0,105560.0,0.4986873]
[1749867180390,0.06759158,105570.0,105560.0,0.4986873]
[1749867180625,0.08653553,105570.0,105560.0,0.49868729]
[1749867180844,0.1054794,105570.0,105560.0,0.49868727]
[1749867181051,0.1054794,105570.0,105560.0,0.49868726]
[1749867181293,0.10548011,105570.0,105560.0,0.49868726]
[1749867181498,0.09848011,105570.0,105560.0,0.49868726]
[1749867181722,0.09848011,105570.0,105560.0,0.49204999]
[1749867181935,0.09848082,105570.0,105560.0,0.34396744]
[1749867182153,0.08900844,105570.0,105560.0,0.50812018]
[1749867182363,0.07800844,105570.0,105560.0,0.50248291]
[1749867182586,0.07800844,105570.0,105560.0,0.5091202]
[1749867182824,0.08748082,105570.0,105560.0,0.49964692]
[1749867183351,0.08748082,105570.0,105560.0,0.49300963]
[1749867183600,0.08748082,105570.0,105560.0,0.49964692]
[1749867185002,0.27692857,105570.0,105560.0,0.49017418]
[1749867185263,0.08748082,105570.0,105560.0,0.49017418]
[1749867185434,0.05906342,105570.0,105560.0,0.49964683]
[1749867185611,0.07800755,105570.0,105560.0,0.49961774]
[1749867186499,0.06853535,105570.0,105560.0,0.49300954]
[1749867186713,0.07800755,105570.0,105560.0,0.49961774]
[1749867186924,0.07800755,105570.0,105560.0,0.49300954]
[1749867187153,0.08747993,105570.0,105560.0,0.33546509]
[1749867187354,0.2674561,105570.0,105560.0,0.4901451]
[1749867187567,0.2674561,105570.0,105560.0,0.49962106]
[1749867189005,0.2674561,105570.0,105560.0,0.32885689]
[1749867189240,0.2674561,105570.0,105560.0,0.31652284]
[1749867189424,5.18626733,105570.0,105560.0,0.17138]
[1749867189673,5.18626733,105570.0,105560.0,0.001]
[1749867189903,5.52524994,105570.0,105560.0,0.001]
[1749867190114,5.86524994,105570.0,105560.0,0.001]
[1749867190330,5.88524994,105570.0,105560.0,0.001]
[1749867191235,0.21792604,105540.0,105530.0,0.19575597]
[1749867191441,0.25800604,105540.0,105530.0,0.20241699]
[1749867191701,0.25800604,105540.0,105530.0,0.43330885]
[1749867192110,0.25800604,105540.0,105530.0,0.42669557]
[1749867192316,0.25800604,105540.0,105530.0,0.28810473]
[1749867192529,0.25800604,105540.0,105530.0,0.44278473]
[1749867192739,0.2485315,105540.0,105530.0,0.39479915]
[1749867192954,0.2485315,105540.0,105530.0,0.40141243]
[1749867193167,0.2485315,105540.0,105530.0,0.41241243]
[1749867193589,0.2485315,105540.0,105530.0,0.40579915]
[1749867194008,0.2485315,105540.0,105530.0,0.41241243]
[1749867194427,0.05902935,105540.0,105530.0,0.50387703]
[1749867194634,0.06850425,105540.0,105530.0,0.49726375]
[1749867194834,0.07797924,105540.0,105530.0,0.50387703]
[1749867195043,0.07897924,105540.0,105530.0,0.51387703]
[1749867195245,0.07897924,105540.0,105530.0,0.50726375]
[1749867195466,0.07897924,105540.0,105530.0,0.51387703]
[1749867195998,0.07897924,105540.0,105530.0,0.51387699]
[1749867196628,0.07897924,105540.0,105530.0,0.51387686]
[1749867196846,0.07897924,105540.0,105530.0,0.51387682]
[1749867197224,0.07897924,105540.0,105530.0,0.51387695]
[1749867197678,0.06950425,105540.0,105530.0,0.51387695]
[1749867198302,0.06950425,105540.0,105530.0,0.51387682]
[1749867198542,0.06950425,105540.0,105530.0,0.51387683]
[1749867198773,0.07901807,105540.0,105530.0,0.51387691]
[1749867198955,0.07901798,105540.0,105530.0,0.51387691]
[1749867199198,0.07901798,105540.0,105530.0,0.51387697]
[1749867199434,0.08849288,105540.0,105530.0,0.51388992]
[1749867199667,0.07901798,105540.0,105530.0,0.51388997]
[1749867199869,0.08849279,105540.0,105530.0,0.51389]
[1749867200083,0.08849279,105540.0,105530.0,0.51388998]
[1749867200295,0.08849279,105540.0,105530.0,0.51389]
[1749867200495,0.08849279,105540.0,105530.0,0.50726375]
[1749867200909,0.08849279,105540.0,105530.0,0.51389]
[1749867201119,0.08849279,105540.0,105530.0,0.51388973]
[1749867201340,0.08849279,105540.0,105530.0,0.51388972]
[1749867201818,0.07901798,105540.0,105530.0,0.51388972]
[1749867202038,0.07901807,105540.0,105530.0,0.51388972]
[1749867202256,0.07901807,105540.0,105530.0,0.50726375]
[1749867202710,0.07901807,105540.0,105530.0,0.51388972]
[1749867202956,0.07901807,105540.0,105530.0,0.50726375]
[1749867203194,0.07901807,105540.0,105530.0,0.51388972]
[1749867203440,0.07901798,105540.0,105530.0,0.51388972]
[1749867203685,0.07901798,105540.0,105530.0,0.50726375]
[1749867203890,0.07901798,105540.0,105530.0,0.51388972]
[1749867204268,0.07901798,105540.0,105530.0,0.50726375]
[1749867204496,0.07901798,105540.0,105530.0,0.51388972]
[1749867205228,0.07901798,105540.0,105530.0,0.50726375]
[1749867205857,0.07901798,105540.0,105530.0,0.51388972]
[1749867206037,0.07901798,105540.0,105530.0,0.50726375]
[1749867206584,0.07901798,105540.0,105530.0,0.51388972]
[1749867207533,0.07901798,105540.0,105530.0,0.50726375]
[1749867207748,0.02942335,105540.0,105530.0,0.51388972]
[1749867207955,0.06954335,105540.0,105530.0,0.51388972]
[1749867208818,0.07901816,105540.0,105530.0,0.51388972]
[1749867209034,0.07901816,105540.0,105530.0,0.50726375]
[1749867209238,0.06954335,105540.0,105530.0,0.50726375]
[1749867209443,0.07901807,105540.0,105530.0,0.50726375]
[1749867209617,0.07901807,105540.0,105530.0,0.51388972]
[1749867210276,0.07901807,105540.0,105530.0,0.50726375]
[1749867210477,0.07901807,105540.0,105530.0,0.51388972]
[1749867212031,0.07901807,105540.0,105530.0,0.50726375]
[1749867212171,0.07901807,105540.0,105530.0,0.51388972]
[1749867212856,0.06954335,105540.0,105530.0,0.51388972]
[1749867213061,0.07901807,105540.0,105530.0,0.51389718]
[1749867213506,0.50517951,105570.0,105560.0,0.19893898]
[1749867213745,0.06090387,105570.0,105560.0,0.44392906]
[1749867213961,0.07984809,105570.0,105560.0,0.46003419]
[1749867214143,0.0703758,105570.0,105560.0,0.46950678]
[1749867214445,0.26929593,105570.0,105560.0,0.45056116]
[1749867214661,0.26929593,105570.0,105560.0,0.44108807]
[1749867214662,0.25035233,105570.0,105560.0,0.44108807]
[1749867214870,0.26335233,105570.0,105560.0,0.44492915]
[1749867215081,0.25388013,105570.0,105560.0,0.44211515]
[1749867215285,0.24088013,105570.0,105560.0,0.43164187]
[1749867215489,0.24088013,105570.0,105560.0,0.44264187]
[1749867215694,0.24088013,105570.0,105560.0,0.45211515]
[1749867215901,0.24588013,105570.0,105560.0,0.4625884]
[1749867216104,0.24588013,105570.0,105560.0,0.48153451]
[1749867216328,0.24088013,105570.0,105560.0,0.4805345]
[1749867216528,0.24088013,105570.0,105560.0,0.4710615]
[1749867216738,0.24088013,105570.0,105560.0,0.46440225]
[1749867216961,0.24088013,105570.0,105560.0,0.4710615]
[1749867217177,0.24088013,105570.0,105560.0,0.46440225]
[1749867217380,0.23140775,105570.0,105560.0,0.45245596]
[1749867217601,0.23140775,105570.0,105560.0,0.46858822]
[1749867217805,0.23140775,105570.0,105560.0,0.45911521]
[1749867218005,0.23140775,105570.0,105560.0,0.45245596]
[1749867218206,0.23140775,105570.0,105560.0,0.46192915]
[1749867218430,0.23140775,105570.0,105560.0,0.4685884]
[1749867218632,0.23140775,105570.0,105560.0,0.45911521]
[1749867219254,0.23140775,105570.0,105560.0,0.45909417]
[1749867219474,0.24088004,105570.0,105560.0,0.47804029]
[1749867219651,0.24088004,105570.0,105560.0,0.47804026]
[1749867219875,0.24088004,105570.0,105560.0,0.46192915]
[1749867220083,0.24088004,105570.0,105560.0,0.47140225]
[1749867220320,0.24088004,105570.0,105560.0,0.47804044]
[1749867220533,0.24088004,105570.0,105560.0,0.48751344]
[1749867220737,0.24088004,105570.0,105560.0,0.48087526]
[1749867220955,0.24088004,105570.0,105560.0,0.4875134]
[1749867221174,0.24088004,105570.0,105560.0,0.45245596]
[1749867221359,0.24088004,105570.0,105560.0,0.46192888]
[1749867221601,0.25035206,105570.0,105560.0,0.45245587]
[1749867221759,0.25035206,105570.0,105560.0,0.46856712]
[1749867222543,0.25035206,105570.0,105560.0,0.4780401]
[1749867223166,0.25035206,105570.0,105560.0,0.47140198]
[1749867223378,0.25035206,105570.0,105560.0,0.4780401]
[1749867223579,0.25035206,105570.0,105560.0,0.47140198]
[1749867223819,0.25035206,105570.0,105560.0,0.47804007]
[1749867224024,0.25035206,105570.0,105560.0,0.47804]
[1749867224443,0.25035206,105570.0,105560.0,0.47140198]
[1749867224679,0.25035206,105570.0,105560.0,0.4590939]
[1749867224915,0.25035206,105570.0,105560.0,0.468567]
[1749867225123,0.25035206,105570.0,105560.0,0.4590939]
[1749867225341,0.25035206,105570.0,105560.0,0.46856693]
[1749867226402,0.25035206,105570.0,105560.0,0.46192888]
[1749867226614,0.25035206,105570.0,105560.0,0.40554375]
[1749867226844,0.25035206,105570.0,105560.0,0.41501694]
[1749867227309,0.25035206,105570.0,105560.0,0.4178519]
[1749867227532,0.25035206,105570.0,105560.0,0.42448995]
[1749867227742,0.25035206,105570.0,105560.0,0.42449004]
[1749867228385,0.25035206,105570.0,105560.0,0.43396305]
[1749867229324,0.25035206,105570.0,105560.0,0.427325]
[1749867229548,0.25035206,105570.0,105560.0,0.43395892]
[1749867229742,0.25035206,105570.0,105560.0,0.4899532]
[1749867230006,0.25035206,105570.0,105560.0,0.4871141]
[1749867230212,0.25035206,105570.0,105560.0,0.48711411]
[1749867230423,0.25035206,105570.0,105560.0,0.48048019]
[1749867230640,0.25035206,105570.0,105560.0,0.41501288]
[1749867231062,0.25035206,105570.0,105560.0,0.42448598]
[1749867231266,0.25035206,105570.0,105560.0,0.42448601]
[1749867231482,0.25035206,105570.0,105560.0,0.41785199]
[1749867231726,0.25035206,105570.0,105560.0,0.41501291]
[1749867231961,0.25035206,105570.0,105560.0,0.40837889]
[1749867232201,0.25035206,105570.0,105560.0,0.41501291]
[1749867232424,0.24088004,105570.0,105560.0,0.41501731]
[1749867232905,0.24088004,105570.0,105560.0,0.4150174]
[1749867233128,0.23140775,105570.0,105560.0,0.20944]
[1749867233351,0.23140775,105570.0,105560.0,0.21607842]
[1749867233534,0.23140775,105570.0,105560.0,0.21891328]
[1749867233799,0.23140775,105570.0,105560.0,0.04133842]
[1749867234036,0.23140775,105570.0,105560.0,0.02463847]
[1749867234257,0.23140775,105570.0,105560.0,0.17536]
[1749867234467,0.23140775,105570.0,105560.0,0.18199874]
[1749867234680,0.23140775,105570.0,105560.0,0.17536]
[1749867235102,0.23140775,105570.0,105560.0,0.17499873]
[1749867235317,0.23140775,105570.0,105560.0,0.16399862]
[1749867235927,0.23140775,105570.0,105560.0,0.16399868]
[1749867235928,0.23240775,105570.0,105560.0,0.16399868]
[1749867236110,0.23640775,105570.0,105560.0,0.16399868]
[1749867236876,0.23640775,105570.0,105560.0,0.15736]
[1749867237323,0.23640775,105570.0,105560.0,0.16399868]
[1749867237733,0.23640775,105570.0,105560.0,0.15736]
[1749867237951,0.23640775,105570.0,105560.0,0.00663868]
[1749867238167,0.19893898,105560.0,105550.0,0.0356]
[1749867238400,0.19893898,105560.0,105550.0,0.0178]
[1749867238576,0.19893898,105560.0,105550.0,0.175]
[1749867238951,0.19893898,105560.0,105550.0,0.16383911]
[1749867239546,0.19893898,105560.0,105550.0,0.02443911]
[1749867239742,0.19893898,105560.0,105550.0,0.1928]
[1749867239956,0.19893898,105560.0,105550.0,0.39839682]
[1749867240126,0.19893898,105560.0,105550.0,0.44136394]
[1749867240315,0.19893898,105560.0,105550.0,0.44136393]
[1749867240488,0.19893898,105560.0,105550.0,0.44736394]
[1749867241290,0.19893898,105560.0,105550.0,0.45019868]
[1749867241499,0.02841903,105560.0,105550.0,0.47231121]
[1749867241704,0.02841885,105560.0,105550.0,0.48178491]
[1749867241906,0.03789204,105560.0,105550.0,0.48178488]
[1749867242114,0.04736532,105560.0,105550.0,0.46567241]
[1749867242357,0.22735828,105560.0,105550.0,0.47231134]
[1749867242582,0.22735828,105560.0,105550.0,0.46567241]
[1749867242728,0.22735828,105560.0,105550.0,0.4723327]
[1749867242927,0.21788527,105560.0,105550.0,0.45619868]
[1749867243185,0.21788527,105560.0,105550.0,0.46285897]
[1749867243398,0.21788527,105560.0,105550.0,0.46285898]
[1749867245003,0.20841217,105560.0,105550.0,0.46285898]
[1749867245204,0.20841217,105560.0,105550.0,0.45619868]
[1749867245628,0.20841217,105560.0,105550.0,0.47395948]
[1749867245835,0.20841217,105560.0,105550.0,0.46285898]
[1749867246014,0.20841217,105560.0,105550.0,0.49009351]
[1749867246192,0.24985217,105560.0,105550.0,0.49009351]
[1749867246409,0.24985217,105560.0,105550.0,0.48061978]
[1749867246748,0.24985217,105560.0,105550.0,0.48061281]
[1749867247035,0.24985217,105560.0,105550.0,0.48059423]
[1749867247170,0.24985217,105560.0,105550.0,0.48059422]
[1749867247371,0.24985217,105560.0,105550.0,0.47394089]
[1749867247577,0.24975743,105560.0,105550.0,0.48059406]